Cogmind - Beta 13 @@@ ROGUE MODE // 2024.07.24 @ 14:04:52 Player: jagoly Result: Destroyed by 5C-E5Y(R) with Subdweller Machine Gun Performance ------------- Evolutions (0) 0 Regions Visited (2) 400 Robots Destroyed (20) 100 Value Destroyed (702) 702 Prototype IDs (3) 60 Alien Tech Used (0) 0 Bonus (0) 0 TOTAL SCORE: 1262 Bonus ------- None Cogmind --------- Core Integrity 0/250 Matter 182/300 Energy 80/100 System Corruption 0% Temperature Cool (0) Movement Rolling (120) Ox1 Location -10/Subcaves Parts ------- > --- POWER (1) -------- (None) > --- PROPULSION (2) --- Subdweller Monowheel Subdweller Monowheel > --- UTILITY (2) ------ Heat Sink Large Storage Unit > --- WEAPON (2) ------- Rocket Launcher > --- INVENTORY (15) --- Ion Engine Makeshift Leg Improved Heat Sink Large Storage Unit High-capacity Storage Unit Signal Interpreter Makeshift Thermal Plating Makeshift Hacking Suite Makeshift System Shield Subdweller Laser Subdweller Machine Gun Battle Cannon Battle Cannon Rocket Launcher Peak State ------------ > --- POWER ------------ Subdweller Power Source > --- PROPULSION ------- Subdweller Monowheel Subdweller Monowheel > --- UTILITY ---------- Heat Sink Large Storage Unit > --- WEAPON ----------- Improved Light Cannon Improved Light Cannon > --- INVENTORY -------- Ion Engine Improved Heat Sink Large Storage Unit High-capacity Storage Unit Signal Interpreter Targeting Computer Makeshift Thermal Plating Makeshift Hacking Suite Makeshift System Shield Subdweller Laser Battle Cannon Battle Cannon Rocket Launcher Rocket Launcher Mining Laser [Rating: 15] Favorites ----------- Power Ion Engine Engine Ion Engine Propulsion Light Treads Treads Light Treads Leg Aluminum Leg Wheel Subdweller Monowheel Utility Heat Sink Device Heat Sink Storage Large Storage Unit Processor Transport Network Coupler Weapon Improved Light Cannon Energy Gun Small Laser Ballistic Gun Assault Rifle Ballistic Cannon Improved Light Cannon Special Weapon Mining Laser Build | -11 -10 -10 ------- Run | Yrd Mat Sub Slots Evolved . | . . . Power . | . . . Propulsion . | . . . Utility . | . . . Weapon . | . . . Parts Attached 31 | 6 10 15 Power 4 | 1 . 3 Engine 4 | 1 . 3 Core . | . . . Reactor . | . . . Propulsion 8 | 2 2 4 Treads 3 | . 2 1 Leg 2 | 2 . . Wheel 3 | . . 3 Hover . | . . . Flight . | . . . Utility 7 | 1 5 1 Device 3 | . 2 1 Storage 3 | 1 2 . Processor 1 | . 1 . Hackware . | . . . Protection . | . . . Artifact . | . . . Weapon 12 | 2 3 7 Energy Gun 1 | 1 . . Energy Cannon . | . . . Ballistic Gun 2 | 1 . 1 Ballistic Cannon 7 | . 3 4 Launcher 1 | . . 1 Special Weapon 1 | . . 1 Impact Weapon . | . . . Slashing Weapon . | . . . Piercing Weapon . | . . . Special Melee Weapon . | . . . Unidentified Prototypes . | . . . Parts Lost 9 | . . 9 Power 2 | . . 2 Propulsion 3 | . . 3 Utility . | . . . Weapon 4 | . . 4 Highest Loss Streak 3 | . . 3 To Critical Strikes . | . . . Average Slot Usage (%) 95 | . 98 92 Engine 13 | . 14 13 Treads 15 | . 15 15 Leg 5 | . 12 . Wheel 3 | . . 5 Device 13 | . 13 14 Storage 14 | . 14 14 Energy Gun 1 | . 3 . Ballistic Gun 2 | . 6 . Ballistic Cannon 23 | . 18 27 Naked Turns . | . . . Heaviest Build 34 | 13 34 34 Greatest Support 40 | 20 40 40 Greatest Overweight (x) 11 | . 1 11 Average Overweight (x) . | . . . Largest Inventory Capacity 15 | 8 15 15 Average Capacity 13 | 6 12 15 Most Carried 15 | 3 13 15 Average Carried 11 | 1 9 13 Final Capacity 15 | 8 15 15 Final Carried 14 | 3 13 14 Class Distribution -------------------- 100% | Mutant Dominant Class ---------------- Mutant | -10/Materials Mutant | -10/Subcaves Resources | -11 -10 -10 ----------- Run | Yrd Mat Sub Matter Collected 1013 | 190 294 529 Remotely . | . . . Salvage Created 468 | . 261 207 Parts 28 | . 16 12 Haulers Intercepted 1 | . 1 . Recyclers Shooed . | . . . Parts Field Recycled . | . . . Retrieved Matter . | . . . Parts Self-Destructed 2 | . . 2 Prevented . | . . . Kills | -11 -10 -10 ------- Run | Yrd Mat Sub Combat Hostiles Destroyed 17 | . 6 11 Cannons 17 | . 6 11 Classes Destroyed 6 | . 4 2 Worker 1 | . 1 . Hauler 1 | . 1 . Watcher 1 | . 1 . Grunt 6 | . 6 . Artisan 1 | . . 1 Subdweller 11 | . . 11 Best Kill Streak 4 | . 4 3 Combat Bots Only 4 | . 4 3 Max Kills in Single Turn 1 | . 1 1 Gunslinging . | . . . Exploded . | . . . Melee . | . . . Uniques/NPCs Destroyed . | . . . Combat | -11 -10 -10 -------- Run | Yrd Mat Sub Hostile Shots Fired 104 | . 26 78 Missed 28 | . 4 24 Damage Taken 1476 | . 311 1165 Core 262 | . 46 216 Absorbed by Shields . | . . . Core Remaining (%) 100 | 100 . . Volleys Fired 95 | . 26 69 Largest 2 | . 2 2 Hottest 100 | . 78 100 Shots Fired 174 | . 52 122 Gun 7 | . 5 2 Cannon 162 | . 47 115 Launcher . | . . . Special 5 | . . 5 Kinetic 168 | . 51 117 Thermal 6 | . 1 5 Explosive . | . . . Electromagnetic . | . . . Robot Hit Streak 19 | . 7 19 Robot Miss Streak 4 | . 4 2 Penetration Max . | . . . Secondary Targets . | . . . Shots Hit Robots 108 | . 27 81 Core Hits 34 | . 11 23 Critical Kills . | . . . Critical Parts Destroyed . | . . . Critical Strikes 3 | . . 3 Blast 3 | . . 3 Melee Attacks . | . . . Impact . | . . . Slashing . | . . . Piercing . | . . . Sneak Attacks . | . . . Combat Hostiles . | . . . Follow-up Attacks . | . . . Damage Inflicted 2286 | . 608 1678 Guns 15 | . 15 . Cannons 2271 | . 593 1678 Explosions . | . . . Melee . | . . . Ramming . | . . . Kinetic 2286 | . 608 1678 Thermal . | . . . Explosive . | . . . Electromagnetic . | . . . Impact . | . . . Slashing . | . . . Piercing . | . . . Highest Corruption . | . . . Average Corruption . | . . . Corruption Purged . | . . . Corruption Blocked . | . . . Overload Shots . | . . . Overflow Damage 33 | . 33 . Projectiles 33 | . 33 . Explosions . | . . . Melee . | . . . Knockbacks 12 | . 4 8 Impact . | . . . Kinetic 12 | . 4 8 Secondary . | . . . Self-Inflicted Damage . | . . . Shots . | . . . Rammed . | . . . Targets Rammed . | . . . Kicked . | . . . Crushed . | . . . Highest Temperature 230 | . 28 230 Average Temperature 32 | . 7 145 Received Heat Transfer 628 | . 183 445 Siege Activations . | . . . Robots Corrupted . | . . . Combat Hostiles . | . . . Parts Fried . | . . . Impact Corruptions . | . . . Robots Melted . | . . . Combat Hostiles . | . . . Parts Melted . | . . . Heat Transferred . | . . . Parts Sabotaged . | . . . Parts Stolen . | . . . Parts Stripped . | . . . Power Chain Reactions . | . . . Alert | -11 -10 -10 ------- Run | Yrd Mat Sub Peak Influence 118 | . 118 . Initial . | . . . Average 39 | . 41 . Maximum Alert Level . | . . . Low Security (%) 100 | 100 100 . Level 1 . | . . . Level 2 . | . . . Level 3 . | . . . Level 4 . | . . . Level 5 . | . . . High Security . | . . . Max Security . | . . . Squads Dispatched . | . . . Investigation . | . . . Extermination . | . . . Reinforcement . | . . . Assault . | . . . Garrison . | . . . Intercept . | . . . Searches Triggered . | . . . Construction Impeded . | . . . Haulers Reinforced . | . . . Active Scanning Responses . | . . . Cargo Convoy Interrupts . | . . . Stealth | -11 -10 -10 --------- Run | Yrd Mat Sub Distress Signals . | . . . Communications Jammed . | . . . Distress Signals . | . . . Times Spotted 27 | . 13 14 Peak Tracking Total 5 | . 5 3 Tactical Retreats . | . . . Traps | -11 -10 -10 ------- Run | Yrd Mat Sub Traps Triggered . | . . . Indirectly . | . . . Trap Hack Attempts . | . . . Triggered . | . . . Disarmed . | . . . Reprogrammed . | . . . Reused . | . . . Traps Extracted . | . . . Installed . | . . . Triggered . | . . . Machines | -11 -10 -10 ---------- Run | Yrd Mat Sub Machines Disabled . | . . . Max in Single Turn . | . . . Machines Repaired . | . . . Machines Dismantled . | . . . Machines Sabotaged . | . . . Overloaded Fab Kills . | . . . Hacking | -11 -10 -10 --------- Run | Yrd Mat Sub Machines Accessed 9 | . 9 . Terminals 8 | . 8 . Fabricators . | . . . Repair Stations . | . . . Recycling Units 1 | . 1 . Scanalyzers . | . . . Garrison Access . | . . . Total Hacks 25 | . 25 . Successful 6 | . 6 . Failed 19 | . 19 . Catastrophic 7 | . 7 . Database Lockouts . | . . . Manual 9 | . 9 . Terminals 23 | . 23 . Fabricators . | . . . Repair Stations . | . . . Recycling Units 2 | . 2 . Scanalyzers . | . . . Garrison Access . | . . . Terminal Hacks 6 | . 6 . Prototype ID Bank 2 | . 2 . Emergency Access Points 1 | . 1 . Terminal Index 1 | . 1 . Locate Traps 1 | . 1 . Hauler Manifests 1 | . 1 . Fabricator Hacks . | . . . Repair Station Hacks . | . . . Recycling Unit Hacks . | . . . Scanalyzer . | . . . Garrison Access Hacks . | . . . Unauthorized Hacks . | . . . Terminals . | . . . Fabricators . | . . . Repair Stations . | . . . Recycling Units . | . . . Scanalyzers . | . . . Garrison Access . | . . . Data Cores Recovered . | . . . Used . | . . . Hacking Detections 9 | . 9 . Full Trace Events . | . . . Feedback Events . | . . . Feedback Blocked . | . . . Robot Schematics Acquired . | . . . Robots Built . | . . . Authchips . | . . . Time . | . . . Total Robot Build Rating . | . . . Part Schematics Acquired . | . . . Parts Built . | . . . Authchips . | . . . Time . | . . . Total Part Build Rating . | . . . Parts Repaired . | . . . Time . | . . . Parts Recycled . | . . . Recycled Matter . | . . . Retrieved Matter . | . . . Retrieved Components . | . . . Parts Scanalyzed . | . . . Part Schematics Acquired . | . . . Parts Damaged . | . . . Bothacking | -11 -10 -10 ------------ Run | Yrd Mat Sub Used RIF Installer . | . . . Robots Hacked . | . . . Non-combat . | . . . Combat . | . . . Robot Hacks Applied . | . . . Relay Couplers Released . | . . . Fabnet Peak Effective % . | . . . Robots Rewired . | . . . Allies Hacked . | . . . Hacks Repelled . | . . . Allies | -11 -10 -10 -------- Run | Yrd Mat Sub Total Allies . | . . . Largest Group . | . . . Highest-Rated Group . | . . . Highest-Rated Ally . | . . . Total Orders . | . . . Ally Attacks . | . . . Total Damage . | . . . Kills . | . . . Allies Corrupted . | . . . Allies Melted . | . . . Intel | -11 -10 -10 ------- Run | Yrd Mat Sub Robot Analysis Total . | . . . Derelict Logs Recovered 1 | . . 1 Drone Launches . | . . . Drone Recoveries . | . . . Exploration | -11 -10 -10 ------------- Run | Yrd Mat Sub Turns Passed 2608 | 55 1129 1424 Spaces Moved 1319 | 38 568 713 Core 37 | 2 . 35 Treads 638 | . 237 401 Legs 367 | 36 331 . Wheels 277 | . . 277 Hover . | . . . Flight . | . . . Fastest Speed 50 | 50 120 120 Average Speed 157 | 116 148 166 Slowest Speed 600 | 120 190 600 Overloaded Moves . | . . . Propulsion Burnouts . | . . . Robots Hopped . | . . . Cave-ins Triggered . | . . . Exploration Rate (%) 41 | 3 77 45 Regions Visited 2 Branch Regions 1 Pre-discovered Areas . | . . . Known Exits Taken . | . . . Unknown Exits Taken 2 | 1 1 . Scrap Searched 7 | . . 7 Spaces Dug . | . . . Terrain Destroyed 2 | . 2 . Melee . | . . . Projectile 2 | . 2 . AOE . | . . . Terrain Rammed . | . . . Walls Destroyed . | . . . Machines Disabled . | . . . Actions | -11 -10 -10 --------- Run | Yrd Mat Sub Total 1663 | 46 800 817 Wait 174 | . 173 1 Move 1317 | 37 567 713 Hop . | . . . Pick Up 27 | 3 14 10 Fast Attach 16 | 6 4 6 Attach 6 | . 1 5 Detach 3 | . 2 1 Swap 9 | . 5 4 Drop 16 | . 8 8 Fire 95 | . 26 69 Melee . | . . . Ram . | . . . Kick . | . . . Crush . | . . . Escape Stasis . | . . . Rewire . | . . . Trap . | . . . Miscellaneous . | . . . Route ------- -11/Scrapyard -10/Materials (discovered 5 exits: [*Mat x2] / [*Min x2] / [*Sub]) -10/Subcaves (discovered 2 exits: [*Mat x2]) History --------- Turn | Location | Event 8 | -11/Scrapyard | Discovered new exit (range 16) 56 | -11/Scrapyard | Entered Materials 65 | -10/Materials | Discovered new exit (range 14) 223 | -10/Materials | Discovered new exit (range 8) 304 | -10/Materials | Build established: Mutant 450 | -10/Materials | Discovered new exit (range 16) 533 | -10/Materials | Discovered new exit (range 16) 1132 | -10/Materials | Discovered new exit (range 5) 1185 | -10/Materials | Entered Subcaves 1534 | -10/Subcaves | A swath of the cavern ceiling suddenly collapsed 1788 | -10/Subcaves | Learned location of 1 exit from Materials 1796 | -10/Subcaves | Shifting Twisted Machinery released Sub. Power Source 1818 | -10/Subcaves | Shifting Twisted Machinery released Mak. Thermal Plating 1878 | -10/Subcaves | Discovered new exit (range 6) 1942 | -10/Subcaves | Disturbed a concealed Subdweller 1953 | -10/Subcaves | Disturbed a concealed Subdweller 1956 | -10/Subcaves | Core integrity fell below 50% 2022 | -10/Subcaves | Discovered new exit (range 11) 2084 | -10/Subcaves | Shifting Twisted Machinery released Hvy. Riot Gun 2088 | -10/Subcaves | Shifting Twisted Machinery released Battle Cannon 2335 | -10/Subcaves | Core integrity fell below 20% 2471 | -10/Subcaves | Shifting Twisted Machinery released Scrap Shield 2473 | -10/Subcaves | Shifting Twisted Machinery released Battle Rifle 2606 | -10/Subcaves | Ambushed by Subdweller buried in earth 2606 | -10/Subcaves | Ambushed by Subdweller buried in earth 2609 | -10/Subcaves | Destroyed by 5C-E5Y(R) with Subdweller Machine Gun Last Messages --------------- 02450_ Searching scrap... 02450_ Found Riot Gun. 02450_ Found Sub. Laser. 02450_ Found 24 Matter. 02451_ Acquired 24 matter. Scrap Shield falls loose from the Twisted Machinery. Battle Rifle falls loose from the Twisted Machinery. 02483_ Dropped Imp. Light Cannon. 02484_ Acquired Battle Rifle. 02491_ Dropped Battle Rifle. 02493_ Acquired Imp. Light Cannon. 02504_ Dropped Mining Laser. 02506_ Acquired Sub. Machine Gun. 02587_ Dropped Targeting Computer. 02589_ Acquired Mak. Leg. 02606_ Sub. Power Source destroyed. 02606_ Imp. Light Cannon destroyed. 02607_ 5C-E5Y(R): "ARGHSUB!" 02607_ 04-WGD(R): "THANKSYOU!" 02607_ Imp. Light Cannon destroyed. Map ----- +----------------------------------------------------+ | ##???????????????????????????????????????????? | | ""##????????????????????????????????????????????? | | #?????????????????????????????????????????????? | | #?????????????????????????????????????????????? | | #?????????????????????????????????????????????? | | # #?????????????????????????????????????????????? | | #""#?????????????????????????????????????????????? | | " ?????????????????????????????????????????????? | | " ?????????????????????????????????????????????? | | " ?????????????????????????????????????????????? | | """?????????????????????????????????????????????? | | """""#???????????????????????????????????????????? | | """" #???????????????????????????????????????????? | | #" #????????????????????????????????????????????? | | # #??????????????????????????????? ????????????? | | #""########??#######?????????????? ????????????? | | """ # #### ##???????????? ???????????? | | """ #??????##??? R ????????????? | | ####### #?? ?????????????? | | ## ####### ## #?# ??????????????? | | #####?????## ## ## ????????????????? | | ##??????????#### # ?????????????????? | | ??????????????##! ####; #??????????????????? | | ??????????????# ##?# ; ;#??????????????????? | | ??????????????# ###??# ;R ;#???????????????????? | | ??????????????# ######;;@ ;#????????????????????? | | ??????????????# ##;R ;#????????????????????? | | ??????????????# #; ;#??? ?????????????? | | ??????????????# ;# #???????????????? | | ??????????????#### #???????????????? | | ?????????????????## #???????????????? | | ??????????????????## ## ##???????????????? | | ???????????????????### ""#?# #????????????????? | | ????????????????????# "#??# ???????????????? | | ????????????????????##| #??? ?????????????? | | #####????????######### #??? ?????????????? | | # ###?????##"""""## ##???? ?????????????? | | ##????# """""" " "#????? ?????????????? | | ##?### """"""""[##?????? ??????????????? | | # ### # """" "#" ??????????????????????? | | #### "" " """" ????????????????????? | | ??## #"""""#" """"! ??????????????????? | | ### ######### """" ### ## #?????????????????? | | # #??????##""" #???#???#??????????????????? | | [ ##???????#### #??????????????????????????? | | [ #???????????##"" #?????????????????????????? | | #####????????????#""""#?????????????????????????? | | # #???????????????""""##?????????????????????????? | | ###??????????????????##??????????????????????????? | | ?????????????????????????????????????????????????? | +----------------------------------------------------+ Best States ------------- Heat Dissipation 35 Energy Generation 15 Energy Capacity 250 Matter Stores 262 Matter Capacity 300 Sight Range 16 Terrain Scan Density 10 Evasion (%) 55 Recoil Reduction 2 Item Schematics ----------------- None Robot Schematics ------------------ None Fabricated ------------ Nothing Alien Tech Used ----------------- None Achievements -------------- None Challenges ------------ None Game ------ Seed EnergyPhaseRegenerator Manual? 0 Play Time 00:25:04 Cumulative 143.2 hours Start 2024.07.24 @ 13:40:07 End 2024.07.24 @ 14:04:52 Sessions 1 Manual Loads 0 Difficulty Rogue Special Mode None Game No. 47 Rogue 47 Adventurer 0 Explorer 0 Win Type - Total 1 Types 1/0/0/0/0/0/0/0/0 Lore% 55 Gallery% 62 Achievement% 46 Wizard Run 0 Options --------- Layout 0 ASCII 0 Keyboard 1 Movement Numpad Keybinds 0 Fullscreen 1 Font 18/X11Bold Map View 76x50 Zoom Use 0% Tactical HUD 1 Map Filters NONE Filters NONE Steam 1 RUN: 70c1052c-610d-4da3-8ce5-f45909d5acc1